Cogmind - Beta 12 @@@ ROGUE MODE // 2023.11.17 @ 20:41:16 Player: Whitebacon Result: Self-destructed Performance ------------- Evolutions (1) 500 Regions Visited (2) 400 Robots Destroyed (40) 200 Value Destroyed (1013) 1013 Prototype IDs (1) 20 Alien Tech Used (0) 0 Bonus (38) 38 TOTAL SCORE: 2171 Bonus ------- High Alert Combat Kills 38 Cogmind --------- Core Integrity 172/400 Matter 268/300 Energy 465/465 System Corruption 3% Temperature Cool (46) Movement Rolling (100) Ox1 Location -9/Materials Parts ------- > --- POWER (1) -------- Reinforced Ion Engine > --- PROPULSION (2) --- Wheel Armored Wheel > --- UTILITY (4) ------ Small Storage Unit Compact Battery Reflective Plating Reflective Plating > --- WEAPON (2) ------- Enhanced Autogun Enhanced Autogun > --- INVENTORY (8) ---- Light Nuclear Core Aluminum Leg Wheel High-capacity Battery (250) Light Armor Plating Reflective Plating Peak State ------------ > --- POWER ------------ Reinforced Ion Engine > --- PROPULSION ------- Wheel Armored Wheel > --- UTILITY ---------- Small Storage Unit Compact Battery Reflective Plating Reflective Plating > --- WEAPON ----------- Enhanced Autogun Enhanced Autogun > --- INVENTORY -------- Light Nuclear Core Aluminum Leg Wheel High-capacity Battery Light Armor Plating Reflective Plating [Rating: 24] Favorites ----------- Power Ion Engine Engine Ion Engine Propulsion Aluminum Leg Treads Light Treads Leg Aluminum Leg Wheel Wheel Utility Small Storage Unit Device Structural Scanner Storage Small Storage Unit Protection Reflective Plating Weapon Enhanced Autogun Energy Gun Particle Gun Ballistic Gun Enhanced Autogun Launcher Grenade Launcher Build | -11 -10 -9 ------- Run | Jun Mat Mat Slots Evolved 2 | . . 2 Power . | . . . Propulsion . | . . . Utility 2 | . . 2 Weapon . | . . . Parts Attached 36 | 6 15 15 Power 4 | 1 1 2 Engine 4 | 1 1 2 Core . | . . . Reactor . | . . . Propulsion 13 | 2 8 3 Treads 3 | 2 1 . Leg 5 | . 5 . Wheel 5 | . 2 3 Hover . | . . . Flight . | . . . Utility 11 | 1 3 7 Device 2 | . 1 1 Storage 4 | 1 . 3 Processor . | . . . Hackware . | . . . Protection 5 | . 2 3 Artifact . | . . . Weapon 8 | 2 3 3 Energy Gun 2 | . 2 . Energy Cannon . | . . . Ballistic Gun 5 | 2 . 3 Ballistic Cannon . | . . . Launcher 1 | . 1 . Special Weapon . | . . . Impact Weapon . | . . . Slashing Weapon . | . . . Piercing Weapon . | . . . Special Melee Weapon . | . . . Unidentified Prototypes 1 | . . 1 Parts Lost 9 | . 3 6 Power 2 | . . 2 Propulsion 1 | . 1 . Utility 3 | . . 3 Weapon 3 | . 2 1 Highest Loss Streak 4 | . 2 4 To Critical Strikes . | . . . Average Slot Usage (%) 88 | . 93 80 Engine 11 | . 14 8 Treads 1 | . 2 . Leg 13 | . 19 3 Wheel 8 | . 4 15 Device 6 | . 8 1 Storage 15 | . 14 17 Protection 8 | . 3 16 Energy Gun 11 | . 16 1 Ballistic Gun 11 | . 8 15 Naked Turns . | . . . Heaviest Build 30 | 14 17 30 Greatest Support 40 | 40 40 22 Greatest Overweight (x) 1 | . 1 1 Average Overweight (x) . | . . . Largest Inventory Capacity 8 | 8 8 8 Average Capacity 7 | 7 8 7 Most Carried 7 | 4 7 6 Average Carried 3 | 1 3 3 Final Capacity 8 | 8 8 8 Final Carried 6 | 2 1 6 Class Distribution -------------------- 69% | Mutant 30% | Scavenger-Mutant Dominant Class ---------------- Scavenger-Mutant | -10/Materials Mutant | -9/Materials Resources | -11 -10 -9 ----------- Run | Jun Mat Mat Matter Collected 1165 | 207 446 512 Remotely . | . . . Salvage Created 1507 | . 566 941 Parts 98 | . 36 62 Haulers Intercepted 1 | . 1 . Recyclers Shooed 3 | 1 . 2 Parts Field Recycled . | . . . Retrieved Matter . | . . . Parts Self-Destructed . | . . . Prevented . | . . . Kills | -11 -10 -9 ------- Run | Jun Mat Mat Combat Hostiles Destroyed 29 | . 12 17 Guns 27 | . 10 17 AOE 2 | . 2 . Classes Destroyed 10 | . 6 4 Worker 3 | . 2 1 Builder 2 | . 1 1 Hauler 1 | . 1 . Recycler 2 | . . 2 Mechanic 1 | . . 1 Watcher 2 | . 1 1 Swarmer 8 | . 3 5 Grunt 17 | . 9 8 Brawler 1 | . . 1 Sentry 3 | . . 3 Best Kill Streak 8 | . 8 8 Combat Bots Only 8 | . 5 8 Max Kills in Single Turn 2 | . 2 1 Gunslinging . | . . . Exploded 1 | . 1 . Melee . | . . . Uniques/NPCs Destroyed . | . . . Combat | -11 -10 -9 -------- Run | Jun Mat Mat Damage Taken 1843 | . 766 1077 Core 341 | . 113 228 Absorbed by Shields . | . . . Regen/Repaired (Parts) 62 | . . 62 Core Remaining (%) 77 | 100 54 . Volleys Fired 115 | . 52 63 Largest 2 | . 2 2 Hottest 105 | . 105 65 Shots Fired 209 | . 101 108 Gun 206 | . 98 108 Cannon . | . . . Launcher 3 | . 3 . Special . | . . . Kinetic 168 | . 64 104 Thermal 38 | . 34 4 Explosive 3 | . 3 . Electromagnetic . | . . . Robot Hit Streak 11 | . 11 8 Robot Miss Streak 6 | . 5 6 Penetration Max . | . . . Secondary Targets 5 | . 2 3 Max Gunslinging Chain 1 | . 1 1 Shots Hit Robots 128 | . 61 67 Core Hits 59 | . 27 32 Critical Kills . | . . . Critical Parts Destroyed 1 | . . 1 Critical Strikes 3 | . 2 1 Burn 2 | . 2 . Destroy 1 | . . 1 Melee Attacks . | . . . Impact . | . . . Slashing . | . . . Piercing . | . . . Sneak Attacks . | . . . Combat Hostiles . | . . . Follow-up Attacks . | . . . Damage Inflicted 2208 | . 1026 1182 Guns 1964 | . 816 1148 Cannons . | . . . Explosions 203 | . 203 . Melee . | . . . Ramming 41 | . 7 34 Kinetic 1645 | . 526 1119 Thermal 319 | . 290 29 Explosive 153 | . 153 . Electromagnetic 50 | . 50 . Impact . | . . . Slashing . | . . . Piercing . | . . . Highest Corruption 3 | . 1 3 Average Corruption 2 | . 1 2 Corruption Purged . | . . . Corruption Blocked . | . . . Effects 6 | . . 6 Message Errors 1 | . . 1 Matter Fused 1 | . . 1 Heat Flow Errors 1 | . . 1 Energy Discharges 2 | . . 2 Data Loss (minor) 1 | . . 1 Overload Shots . | . . . Overflow Damage . | . . . Projectiles . | . . . Explosions . | . . . Melee . | . . . Knockbacks 1 | . . 1 Impact 1 | . . 1 Kinetic . | . . . Secondary . | . . . Self-Inflicted Damage 80 | . 67 13 Shots 3 | . 3 . Rammed 16 | 1 . 15 Targets Rammed 18 | 1 2 15 Kicked 2 | . 2 . Crushed . | . . . Highest Temperature 403 | . 357 403 Average Temperature 132 | . 120 141 Received Heat Transfer 831 | . 399 432 Effects 6 | . 4 2 Energy Bleed 1 | . 1 . Interference 1 | . . 1 Matter Decay 1 | . 1 . Short Circuit 1 | . 1 . Damage (minor) 2 | . 1 1 Siege Activations . | . . . Robots Corrupted . | . . . Combat Hostiles . | . . . Parts Fried . | . . . Impact Corruptions . | . . . Robots Melted . | . . . Combat Hostiles . | . . . Parts Melted 1 | . 1 . Heat Transferred 853 | . 779 74 Parts Sabotaged . | . . . Parts Stolen . | . . . Parts Stripped . | . . . Power Chain Reactions . | . . . Missiles Intercepted . | . . . Alert | -11 -10 -9 ------- Run | Jun Mat Mat Peak Influence 465 | . 224 465 Initial 85 | . . 85 Average 130 | . 106 195 Maximum Alert Level 2 | . 1 2 Low Security (%) 64 | 100 64 59 Level 1 31 | . 35 29 Level 2 3 | . . 10 Level 3 . | . . . Level 4 . | . . . Level 5 . | . . . High Security . | . . . Max Security . | . . . Squads Dispatched 1 | . 1 . Investigation 1 | . 1 . Extermination . | . . . Reinforcement . | . . . Assault . | . . . Garrison . | . . . Intercept . | . . . Searches Triggered . | . . . Construction Impeded . | . . . Haulers Reinforced . | . . . Active Scanning Responses . | . . . Cargo Convoy Interrupts . | . . . Stealth | -11 -10 -9 --------- Run | Jun Mat Mat Distress Signals 2 | . 1 1 Communications Jammed . | . . . Distress Signals . | . . . Times Spotted 42 | . 17 25 Peak Tracking Total 8 | . 6 8 Tactical Retreats 1 | . 1 . Traps | -11 -10 -9 ------- Run | Jun Mat Mat Traps Triggered 1 | . 1 . Indirectly . | . . . Trap Hack Attempts . | . . . Triggered . | . . . Disarmed . | . . . Reprogrammed . | . . . Reused . | . . . Traps Extracted . | . . . Installed . | . . . Triggered . | . . . Machines | -11 -10 -9 ---------- Run | Jun Mat Mat Machines Disabled 6 | . 4 2 Max in Single Turn 3 | . 3 1 Machines Repaired . | . . . Machines Sabotaged . | . . . Overloaded Fab Kills . | . . . Hacking | -11 -10 -9 --------- Run | Jun Mat Mat Machines Accessed 6 | . 4 2 Terminals 3 | . 3 . Fabricators . | . . . Repair Stations 2 | . 1 1 Recycling Units . | . . . Scanalyzers 1 | . . 1 Garrison Access . | . . . Total Hacks 12 | . 8 4 Successful 6 | . 2 4 Failed 6 | . 6 . Catastrophic 2 | . 2 . Database Lockouts . | . . . Manual 6 | . 6 . Terminals 6 | . 6 . Fabricators . | . . . Repair Stations 4 | . 2 2 Recycling Units . | . . . Scanalyzers 2 | . . 2 Garrison Access . | . . . Terminal Hacks . | . . . Fabricator Hacks . | . . . Repair Station Hacks 3 | . 1 2 Scan Component 2 | . 1 1 Repair 1 | . . 1 Recycling Unit Hacks . | . . . Scanalyzer 2 | . . 2 Insert Component 1 | . . 1 Analyze 1 | . . 1 Garrison Access Hacks . | . . . Unauthorized Hacks 1 | . 1 . Terminals 1 | . 1 . Botnet 1 | . 1 . Fabricators . | . . . Repair Stations . | . . . Recycling Units . | . . . Scanalyzers . | . . . Garrison Access . | . . . Data Cores Recovered . | . . . Used . | . . . Hacking Detections 4 | . 3 1 Full Trace Events 1 | . 1 . Feedback Events . | . . . Feedback Blocked . | . . . Robot Schematics Acquired . | . . . Robots Built . | . . . Authchips . | . . . Time . | . . . Total Robot Build Rating . | . . . Part Schematics Acquired 1 | . . 1 Parts Built . | . . . Authchips . | . . . Time . | . . . Total Part Build Rating . | . . . Parts Repaired 1 | . . 1 Time 32 | . . 32 Parts Recycled . | . . . Recycled Matter . | . . . Retrieved Matter . | . . . Retrieved Components . | . . . Parts Scanalyzed 1 | . . 1 Part Schematics Acquired 1 | . . 1 Parts Damaged . | . . . Bothacking | -11 -10 -9 ------------ Run | Jun Mat Mat Used RIF Installer . | . . . Robots Hacked . | . . . Non-combat . | . . . Combat . | . . . Robot Hacks Applied . | . . . Relay Couplers Released . | . . . Fabnet Peak Effective % . | . . . Robots Rewired . | . . . Allies Hacked . | . . . Hacks Repelled . | . . . Allies | -11 -10 -9 -------- Run | Jun Mat Mat Total Allies . | . . . Largest Group . | . . . Highest-Rated Group . | . . . Highest-Rated Ally . | . . . Total Orders . | . . . Ally Attacks . | . . . Total Damage . | . . . Kills . | . . . Allies Corrupted . | . . . Allies Melted . | . . . Intel | -11 -10 -9 ------- Run | Jun Mat Mat Robot Analysis Total . | . . . Derelict Logs Recovered . | . . . Drone Launches . | . . . Drone Recoveries . | . . . Exploration | -11 -10 -9 ------------- Run | Jun Mat Mat Turns Passed 1313 | 79 788 446 Spaces Moved 735 | 45 460 230 Core 7 | 7 . . Treads 85 | 38 47 . Legs 383 | . 372 11 Wheels 260 | . 41 219 Hover . | . . . Flight . | . . . Fastest Speed 50 | 50 80 85 Average Speed 115 | 142 121 97 Slowest Speed 160 | 160 160 120 Overloaded Moves . | . . . Propulsion Burnouts . | . . . Robots Hopped . | . . . Cave-ins Triggered . | . . . Exploration Rate (%) 34 | 3 77 22 Regions Visited 2 Branch Regions . Pre-discovered Areas . | . . . Known Exits Taken . | . . . Unknown Exits Taken 2 | 1 1 . Scrap Searched . | . . . Spaces Dug . | . . . Terrain Destroyed 20 | . 20 . Melee . | . . . Projectile . | . . . AOE 20 | . 20 . Terrain Rammed . | . . . Walls Destroyed . | . . . Machines Disabled . | . . . Actions | -11 -10 -9 --------- Run | Jun Mat Mat Total 1036 | 59 593 384 Wait 70 | . 30 40 Move 733 | 44 459 230 Hop . | . . . Pick Up 45 | 8 19 18 Fast Attach . | . . . Attach 26 | 6 7 13 Detach . | . . . Swap 10 | . 8 2 Drop 19 | . 16 3 Fire 115 | . 52 63 Melee . | . . . Ram 15 | . . 15 Kick 2 | . 2 . Crush 1 | 1 . . Escape Stasis . | . . . Rewire . | . . . Trap . | . . . Miscellaneous . | . . . Route ------- -11/Junkyard -10/Materials (discovered 3 exits: *Mat x2 / [*Min]) -9/Materials History --------- Turn | Location | Event 9 | -11/Junkyard | Discovered new exit (range 14) 80 | -11/Junkyard | Entered Materials 315 | -10/Materials | Build established: Mutant 518 | -10/Materials | Discovered new exit (range 10) 569 | -10/Materials | Discovered new exit (range 7) 625 | -10/Materials | Build established: Scavenger-Mutant 825 | -10/Materials | Discovered new exit (range 12) 868 | -10/Materials | Entered another Materials area 868 | -9/Materials | Evolved 2 slots: Utility x2 1017 | -9/Materials | Lost 4 parts (1p2u1w) 1043 | -9/Materials | Build established: Mutant 1185 | -9/Materials | Repaired Arm. Wheel 1198 | -9/Materials | Core integrity fell below 50% 1251 | -9/Materials | Destroyed 8 combat bots 1314 | -9/Materials | Self-destructed Last Messages --------------- 01251_ W-16 Scout sends out distress signal. 01253_ K-01 Serf collects debris. 01255_ R-06 Scavenger collects Beam Rifle. 01257_ K-01 Serf collects debris. 01262_ Acquired 20 matter. 01263_ EJ9RRTWB3 K4WPXF,#&XQO0 01266_ K-01 Serf collects debris. 01268_ Acquired 4 matter. 01268_ G-47 Trooper destroyed. 01269_ Acquired 4 matter. 01269_ K-01 Serf collects debris. 01281_ System corrupted: Energy discharge (-97). 01287_ K-01 Serf cleans the Terminal. 01308_ S-10 Pest suffers critical hit (Destroy). 01308_ Destroyed Lgt. Ion Engine. 01311_ S-10 Pest destroyed. 01311_ K-01 Serf collects debris. Map ----- +----------------------------------------------------+ | ???????????????????????????????????????? ??????? | | ???????????????????????????????????????# #?????? | | ??????????????????????????? ? ?????????# #?????? | | ?????????????????????????? ????????# #?????? | | ?????????????????????????? T ????????+ #?????? | | ?????????????????????????? ????????# #?????? | | ?????????????????????????? ????????# #?????? | | ??????????????????????????# #????????# #?????? | | ??????????????????????????# #????????# #?????? | | ??????????????????????????# #????????# +?????? | | ??????????????????????????# #????????# #?????? | | ??????????????????????????# ########?# #?????? | | ??????????????????????????# # T #?# #?????? | | ??????????????????????????# # ### #?????? | | ??????????????????????????# # [! ## ####### | | ??????????????????????????# # [=### =%= | | ??????????????????????????# # =*=#?# ####### | | ??????????????????????????# + =*%#?# #?????# | | ??????????????????????????# ######+### #?????# | | ??????????????????????????# # [%=![# #?????# | | ???????????#+############## # ""%*%!# #?????# | | ??????????= u # """*%=# #?????# | | ??????????%[ # "" = # #?????# | | ????????? # =% ! # #?????# | | ????????? # % [ #! =#?????# | | ????????? t @ + " " +== #?????# | | ????????? k # "R" # !#?????+ | | ????????????############### # """ # #?????# | | ??????????????????????######+########### ####### | | ??????????????????????#! #???# * | | ??????????????????????# """ """ #???# % % | | ??????????????????????# """"""""" #?#"" | | ??????????????????????# """"" #?#"Y | | ??????????????????????# #?#"" " " | | ??????????????????????##############?### | | ???????????????????????????????????????# | | ??????????????????????????????????????? ##### | | ??????????????????????????????????????? #???? | | ?????????????????????????????????????? #????? | | ??????????????????????????????????????######?????? | | ?????????????????????????????????????????????????? | | ?????????????????????????????????????????????????? | | ?????????????????????????????????????????????????? | | ?????????????????????????????????????????????????? | | ?????????????????????????????????????????????????? | | ?????????????????????????????????????????????????? | | ?????????????????????????????????????????????????? | | ?????????????????????????????????????????????????? | | ?????????????????????????????????????????????????? | | ?????????????????????????????????????????????????? | +----------------------------------------------------+ Best States ------------- Heat Dissipation 38 Energy Generation 12 Energy Capacity 575 Matter Stores 300 Matter Capacity 300 Sight Range 16 Terrain Scan Density 10 Armor Coverage 300 Resistance: TH 10 Evasion (%) 55 Recoil Reduction 2 Item Schematics ----------------- Aluminum Leg | -9/Materials | Scanalyzed Robot Schematics ------------------ None Fabricated ------------ Nothing Alien Tech Used ----------------- None Achievements -------------- None Challenges ------------ None Game ------ Seed KineticWarpCompactor Manual? 0 Play Time 00:09:36 Cumulative 87.5 hours Start 2023.09.30 @ 18:49:03 End 2023.11.17 @ 20:41:16 Sessions 3 Manual Loads 0 Difficulty Rogue Special Mode None Game No. 164 Rogue 164 Adventurer 0 Explorer 0 Win Type - Total 0 Types 0/0/0/0/0/0/0/0/0 Lore% 41 Gallery% 54 Achievement% 38 Wizard Run 0 Options --------- ASCII 0 Keyboard 0 Movement Numpad Keybinds 0 Fullscreen 1 Font 12/Smallcaps Map View 83x54 Tactical HUD 1 Map Filters NONE Filters NONE Steam 1 RUN: 7ab8cd9b-b128-4a4b-9e13-f7340a8318f1